[Event "Early-Titled-Tuesday-Blitz-February-20-2024"]
[Site "Chess.com"]
[Date "2024.02.20"]
[Round "10"]
[White "deribas12345"]
[Black "Der_Balak_3Halak"]
[Result "0-1"]
[WhiteElo "2597"]
[BlackElo "2463"]
[TimeControl "180+1"]
[EndTime "10:00:52 PST"]
[Termination "Der_Balak_3Halak won by checkmate"]

1. d4 {[%clk 0:03:00.9]} 1... d5 {[%clk 0:03:00.6]} 2. c4 {[%clk 0:02:56.2]}
2... c6 {[%clk 0:03:01.2]} 3. Nc3 {[%clk 0:02:56.1]} 3... Nf6 {[%clk 0:03:01.6]}
4. Nf3 {[%clk 0:02:56.7]} 4... e6 {[%clk 0:03:01.7]} 5. g3 {[%clk 0:02:57.2]}
5... Be7 {[%clk 0:03:01.8]} 6. Bg2 {[%clk 0:02:57.8]} 6... O-O {[%clk
0:03:02.2]} 7. O-O {[%clk 0:02:58.7]} 7... Nbd7 {[%clk 0:03:02.3]} 8. b3 {[%clk
0:02:56.5]} 8... b6 {[%clk 0:02:59.8]} 9. Bb2 {[%clk 0:02:56.5]} 9... Ba6 {[%clk
0:03:00.2]} 10. cxd5 {[%clk 0:02:53.2]} 10... cxd5 {[%clk 0:02:58.4]} 11. Re1
{[%clk 0:02:41.6]} 11... Rc8 {[%clk 0:02:53.9]} 12. Rc1 {[%clk 0:02:39.8]} 12...
Bb7 {[%clk 0:02:45.2]} 13. Qd3 {[%clk 0:02:26.4]} 13... Ne4 {[%clk 0:02:43.6]}
14. Red1 {[%clk 0:02:08.6]} 14... Bb4 {[%clk 0:02:24.9]} 15. Na4 {[%clk
0:01:56.1]} 15... Qe7 {[%clk 0:02:15.9]} 16. Rxc8 {[%clk 0:01:48]} 16... Rxc8
{[%clk 0:02:16.8]} 17. Rc1 {[%clk 0:01:48.2]} 17... Rxc1+ {[%clk 0:02:06.8]} 18.
Bxc1 {[%clk 0:01:49.1]} 18... Ba3 {[%clk 0:02:07]} 19. Bf4 {[%clk 0:01:42.6]}
19... h6 {[%clk 0:01:55.2]} 20. h4 {[%clk 0:01:41.3]} 20... Bd6 {[%clk
0:01:52.7]} 21. Bxd6 {[%clk 0:01:35]} 21... Qxd6 {[%clk 0:01:53.6]} 22. Qc2
{[%clk 0:01:35.3]} 22... Qc6 {[%clk 0:01:48.2]} 23. Ne1 {[%clk 0:01:33]} 23...
Ndf6 {[%clk 0:01:40]} 24. e3 {[%clk 0:01:13.8]} 24... Kf8 {[%clk 0:01:30.4]} 25.
Qxc6 {[%clk 0:01:04.8]} 25... Bxc6 {[%clk 0:01:31.3]} 26. Nb2 {[%clk 0:01:05.5]}
26... Nc3 {[%clk 0:01:27.9]} 27. a4 {[%clk 0:01:05.4]} 27... Ne2+ {[%clk
0:01:25.8]} 28. Kf1 {[%clk 0:00:58]} 28... Nc1 {[%clk 0:01:22.9]} 29. b4 {[%clk
0:00:57.1]} 29... a5 {[%clk 0:01:19.7]} 30. Nc2 {[%clk 0:00:45.7]} 30... b5
{[%clk 0:01:04]} 31. bxa5 {[%clk 0:00:36.5]} 31... bxa4 {[%clk 0:01:03]} 32. Na3
{[%clk 0:00:30.9]} 32... Bb7 {[%clk 0:00:30.8]} 33. Ke1 {[%clk 0:00:25.9]} 33...
Nb3 {[%clk 0:00:29.8]} 34. Nxa4 {[%clk 0:00:23.8]} 34... Nxa5 {[%clk 0:00:29.7]}
35. Nc5 {[%clk 0:00:24.3]} 35... Bc8 {[%clk 0:00:24.6]} 36. Kd2 {[%clk
0:00:23.2]} 36... Nd7 {[%clk 0:00:22.9]} 37. Kc3 {[%clk 0:00:21.9]} 37... Nc6
{[%clk 0:00:20.2]} 38. Bf1 {[%clk 0:00:20.6]} 38... Ke7 {[%clk 0:00:19.4]} 39.
Nd3 {[%clk 0:00:20.2]} 39... e5 {[%clk 0:00:18.7]} 40. Nb5 {[%clk 0:00:20.1]}
40... e4 {[%clk 0:00:18.3]} 41. Nb4 {[%clk 0:00:17.6]} 41... Nxb4 {[%clk
0:00:17.9]} 42. Kxb4 {[%clk 0:00:18.5]} 42... Ba6 {[%clk 0:00:17.9]} 43. Be2
{[%clk 0:00:17.5]} 43... Nf6 {[%clk 0:00:17.1]} 44. Ka5 {[%clk 0:00:17.7]} 44...
Bxb5 {[%clk 0:00:17]} 45. Kxb5 {[%clk 0:00:18.2]} 45... Kd6 {[%clk 0:00:16.7]}
46. Kb6 {[%clk 0:00:18.5]} 46... h5 {[%clk 0:00:16.5]} 47. Kb7 {[%clk
0:00:18.3]} 47... Kd7 {[%clk 0:00:15.8]} 48. Bb5+ {[%clk 0:00:18.1]} 48... Kd6
{[%clk 0:00:16.4]} 49. Be2 {[%clk 0:00:18.2]} 49... Kd7 {[%clk 0:00:17]} 50. Kb6
{[%clk 0:00:18.2]} 50... Kd6 {[%clk 0:00:17.6]} 51. Bd1 {[%clk 0:00:15.4]} 51...
g6 {[%clk 0:00:17.6]} 52. Kb5 {[%clk 0:00:14.9]} 52... Nd7 {[%clk 0:00:17.4]}
53. Ka6 {[%clk 0:00:10.2]} 53... f6 {[%clk 0:00:17.2]} 54. Kb7 {[%clk
0:00:10.3]} 54... Nf8 {[%clk 0:00:16.5]} 55. Kc8 {[%clk 0:00:10.1]} 55... Ne6
{[%clk 0:00:16.8]} 56. Bb3 {[%clk 0:00:08.3]} 56... g5 {[%clk 0:00:16.2]} 57.
Bd1 {[%clk 0:00:08.1]} 57... g4 {[%clk 0:00:14.2]} 58. Bb3 {[%clk 0:00:07.9]}
58... Kc6 {[%clk 0:00:14.3]} 59. Ba4+ {[%clk 0:00:07.4]} 59... Kd6 {[%clk
0:00:14.4]} 60. Be8 {[%clk 0:00:07.7]} 60... Ng7 {[%clk 0:00:14.2]} 61. Bg6
{[%clk 0:00:08.1]} 61... Ke7 {[%clk 0:00:11.7]} 62. Kc7 {[%clk 0:00:08.6]} 62...
f5 {[%clk 0:00:12.1]} 63. Kc6 {[%clk 0:00:05.5]} 63... Kf6 {[%clk 0:00:11.9]}
64. Bh7 {[%clk 0:00:04.6]} 64... Ne6 {[%clk 0:00:09.9]} 65. Kxd5 {[%clk
0:00:04.8]} 65... Nc7+ {[%clk 0:00:09.5]} 66. Kd6 {[%clk 0:00:05]} 66... Nb5+
{[%clk 0:00:09.5]} 67. Kd7 {[%clk 0:00:03]} 67... Nc3 {[%clk 0:00:06.3]} 68. Bg8
{[%clk 0:00:03.4]} 68... Nd1 {[%clk 0:00:06.1]} 69. Kc7 {[%clk 0:00:03.1]} 69...
Nxf2 {[%clk 0:00:06.5]} 70. d5 {[%clk 0:00:03.8]} 70... f4 {[%clk 0:00:04]} 71.
exf4 {[%clk 0:00:03.3]} 71... e3 {[%clk 0:00:04.2]} 72. d6 {[%clk 0:00:04]}
72... e2 {[%clk 0:00:04.8]} 73. d7 {[%clk 0:00:04.6]} 73... e1=Q {[%clk
0:00:05.7]} 74. d8=Q+ {[%clk 0:00:05.2]} 74... Qe7+ {[%clk 0:00:06.4]} 75. Qxe7+
{[%clk 0:00:05.2]} 75... Kxe7 {[%clk 0:00:07.3]} 76. Bd5 {[%clk 0:00:05]} 76...
Kf6 {[%clk 0:00:05.4]} 77. Kd6 {[%clk 0:00:05]} 77... Nd3 {[%clk 0:00:05.9]} 78.
Be4 {[%clk 0:00:04.3]} 78... Nf2 {[%clk 0:00:05.9]} 79. Kd5 {[%clk 0:00:04.8]}
79... Nd1 {[%clk 0:00:05]} 80. Kd4 {[%clk 0:00:05.2]} 80... Nf2 {[%clk
0:00:04.8]} 81. Bc2 {[%clk 0:00:04.3]} 81... Nh1 {[%clk 0:00:03.1]} 82. Ke3
{[%clk 0:00:03.5]} 82... Nxg3 {[%clk 0:00:04]} 83. Kf2 {[%clk 0:00:04]} 83...
Nf5 {[%clk 0:00:04.3]} 84. Kg2 {[%clk 0:00:02.6]} 84... Nxh4+ {[%clk 0:00:04.7]}
85. Kg3 {[%clk 0:00:03]} 85... Ng6 {[%clk 0:00:04.9]} 86. Kh2 {[%clk 0:00:03.1]}
86... Nxf4 {[%clk 0:00:04.8]} 87. Bd1 {[%clk 0:00:03.6]} 87... Kg5 {[%clk
0:00:04.7]} 88. Kg3 {[%clk 0:00:03.6]} 88... h4+ {[%clk 0:00:05.1]} 89. Kf2
{[%clk 0:00:04.1]} 89... g3+ {[%clk 0:00:06]} 90. Kg1 {[%clk 0:00:03.9]} 90...
Nd5 {[%clk 0:00:05.7]} 91. Bf3 {[%clk 0:00:03.8]} 91... Ne3 {[%clk 0:00:06]} 92.
Kh1 {[%clk 0:00:03.9]} 92... Kf4 {[%clk 0:00:06.9]} 93. Bc6 {[%clk 0:00:03.7]}
93... h3 {[%clk 0:00:07.4]} 94. Bb7 {[%clk 0:00:03.4]} 94... Ng4 {[%clk
0:00:07.9]} 95. Kg1 {[%clk 0:00:02.7]} 95... Ke3 {[%clk 0:00:08.4]} 96. Bf3
{[%clk 0:00:02.1]} 96... Kxf3 {[%clk 0:00:08.1]} 97. Kh1 {[%clk 0:00:02.7]}
97... g2+ {[%clk 0:00:08.2]} 98. Kg1 {[%clk 0:00:02.9]} 98... h2# {[%clk
0:00:09.1]} 0-1

[Event "Early-Titled-Tuesday-Blitz-February-20-2024"]
[Site "Chess.com"]
[Date "2024.02.20"]
[Round "11"]
[White "Korchmar_Vasiliy"]
[Black "KononenkoD"]
[Result "1-0"]
[WhiteElo "2772"]
[BlackElo "2551"]
[TimeControl "180+1"]
[EndTime "10:02:32 PST"]
[Termination "Korchmar_Vasiliy won by resignation"]

1. e4 {[%clk 0:03:00.9]} 1... c6 {[%clk 0:02:58.3]} 2. d4 {[%clk 0:03:00.9]}
2... d5 {[%clk 0:02:59.2]} 3. exd5 {[%clk 0:03:01.8]} 3... cxd5 {[%clk
0:02:59.6]} 4. Bd3 {[%clk 0:03:02.7]} 4... Nc6 {[%clk 0:02:59.3]} 5. c3 {[%clk
0:03:03.3]} 5... Nf6 {[%clk 0:02:59.5]} 6. h3 {[%clk 0:03:03.6]} 6... g6 {[%clk
0:02:59.3]} 7. Nf3 {[%clk 0:03:03.4]} 7... Bf5 {[%clk 0:02:59.9]} 8. Bf4 {[%clk
0:03:01.4]} 8... Bxd3 {[%clk 0:02:54.6]} 9. Qxd3 {[%clk 0:03:02.3]} 9... Bg7
{[%clk 0:02:55]} 10. Nbd2 {[%clk 0:02:59.6]} 10... O-O {[%clk 0:02:54.5]} 11.
O-O {[%clk 0:03:00.2]} 11... Ne8 {[%clk 0:02:50.8]} 12. Rfe1 {[%clk 0:03:00.1]}
12... Qd6 {[%clk 0:02:50.2]} 13. Bxd6 {[%clk 0:02:59.9]} 13... Nxd6 {[%clk
0:02:51]} 14. Ne5 {[%clk 0:02:58.5]} 1-0

[Event "Early-Titled-Tuesday-Blitz-February-20-2024"]
[Site "Chess.com"]
[Date "2024.02.20"]
[Round "11"]
[White "Yan_Dyomin2010"]
[Black "Grande_Strategia"]
[Result "1-0"]
[WhiteElo "2727"]
[BlackElo "2530"]
[TimeControl "180+1"]
[EndTime "10:04:58 PST"]
[Termination "Yan_Dyomin2010 won by checkmate"]

1. e4 {[%clk 0:02:59.9]} 1... f6 {[%clk 0:03:00.1]} 2. d4 {[%clk 0:02:56.7]}
2... Kf7 {[%clk 0:03:00.4]} 3. Nf3 {[%clk 0:02:52.4]} 3... g6 {[%clk 0:03:00.8]}
4. Bd3 {[%clk 0:02:48.6]} 4... Bh6 {[%clk 0:03:01.2]} 5. O-O {[%clk 0:02:47]}
5... Kg7 {[%clk 0:03:01.5]} 6. Nc3 {[%clk 0:02:40]} 6... d6 {[%clk 0:03:01.8]}
7. e5 {[%clk 0:02:37.6]} 7... Nc6 {[%clk 0:03:01.4]} 8. exf6+ {[%clk 0:02:35.5]}
8... exf6 {[%clk 0:03:02.3]} 9. Re1 {[%clk 0:02:32.2]} 9... Bg4 {[%clk
0:02:58.3]} 10. h3 {[%clk 0:02:18.6]} 10... Bxc1 {[%clk 0:02:38.2]} 11. Rxc1
{[%clk 0:02:17.8]} 11... Bxf3 {[%clk 0:02:38.2]} 12. Qxf3 {[%clk 0:02:18.7]}
12... Nh6 {[%clk 0:02:37.3]} 13. Qf4 {[%clk 0:02:09.4]} 13... Re8 {[%clk
0:02:24.1]} 14. Nd5 {[%clk 0:02:08.3]} 14... Rxe1+ {[%clk 0:02:11.9]} 15. Rxe1
{[%clk 0:02:09.1]} 15... Ng8 {[%clk 0:02:12.5]} 16. h4 {[%clk 0:02:06.4]} 16...
Nce7 {[%clk 0:01:40.5]} 17. Rxe7+ {[%clk 0:02:04.4]} 17... Nxe7 {[%clk
0:01:41.4]} 18. Qxf6+ {[%clk 0:02:04.4]} 18... Kh6 {[%clk 0:01:39.2]} 19. Nxe7
{[%clk 0:02:04.1]} 19... Qf8 {[%clk 0:01:39.6]} 20. Nf5+ {[%clk 0:02:02.9]}
20... Kh5 {[%clk 0:01:38.7]} 21. Be2# {[%clk 0:02:02.7]} 1-0

[Event "Early-Titled-Tuesday-Blitz-February-20-2024"]
[Site "Chess.com"]
[Date "2024.02.20"]
[Round "11"]
[White "falzehope0"]
[Black "ninguno46"]
[Result "0-1"]
[WhiteElo "2416"]
[BlackElo "2551"]
[TimeControl "180+1"]
[EndTime "10:05:31 PST"]
[Termination "ninguno46 won by checkmate"]

1. d4 {[%clk 0:03:00.9]} 1... Nf6 {[%clk 0:02:59.4]} 2. e3 {[%clk 0:02:58.3]}
2... e6 {[%clk 0:02:59.1]} 3. Bd3 {[%clk 0:02:58]} 3... b6 {[%clk 0:02:59.4]} 4.
f4 {[%clk 0:02:58.2]} 4... Bb7 {[%clk 0:02:59.4]} 5. Nf3 {[%clk 0:02:58.6]} 5...
c5 {[%clk 0:02:59]} 6. c3 {[%clk 0:02:58.5]} 6... g6 {[%clk 0:02:58.7]} 7. O-O
{[%clk 0:02:58.3]} 7... Bg7 {[%clk 0:02:58.9]} 8. Nbd2 {[%clk 0:02:58.3]} 8...
O-O {[%clk 0:02:55.6]} 9. Qe2 {[%clk 0:02:57.9]} 9... Nd5 {[%clk 0:02:51.2]} 10.
a3 {[%clk 0:02:55]} 10... cxd4 {[%clk 0:02:50.2]} 11. cxd4 {[%clk 0:02:51.4]}
11... Nc6 {[%clk 0:02:49.2]} 12. Ne1 {[%clk 0:02:48.1]} 12... f5 {[%clk
0:02:46.1]} 13. Nc4 {[%clk 0:02:43.6]} 13... d6 {[%clk 0:02:39.7]} 14. b4 {[%clk
0:02:32]} 14... b5 {[%clk 0:02:36.1]} 15. Nd2 {[%clk 0:02:20.3]} 15... Nxe3
{[%clk 0:02:35.3]} 16. Nb3 {[%clk 0:02:01.5]} 16... Nxf1 {[%clk 0:02:29.7]} 17.
Qxe6+ {[%clk 0:02:00.3]} 17... Kh8 {[%clk 0:02:29.1]} 18. Kxf1 {[%clk
0:01:56.1]} 18... Re8 {[%clk 0:02:21.3]} 19. Qd5 {[%clk 0:01:47]} 19... Na5
{[%clk 0:02:20.5]} 20. Qxb5 {[%clk 0:01:38.6]} 20... Nxb3 {[%clk 0:02:17.7]} 21.
Qxb7 {[%clk 0:01:35.6]} 21... Nxa1 {[%clk 0:02:17.2]} 22. Bb2 {[%clk 0:01:35.5]}
22... Nb3 {[%clk 0:02:14.2]} 23. Qd5 {[%clk 0:01:33.7]} 23... Nd2+ {[%clk
0:02:11.6]} 24. Kf2 {[%clk 0:01:31]} 24... Qe7 {[%clk 0:02:11.3]} 25. Nc2 {[%clk
0:01:25.3]} 25... Rac8 {[%clk 0:02:09.3]} 26. h3 {[%clk 0:01:08]} 26... Rxc2
{[%clk 0:02:08.6]} 27. Bxc2 {[%clk 0:01:07.6]} 27... Qe3# {[%clk 0:02:08]} 0-1

[Event "Early-Titled-Tuesday-Blitz-February-20-2024"]
[Site "Chess.com"]
[Date "2024.02.20"]
[Round "11"]
[White "DarZay"]
[Black "Chessbard1972"]
[Result "0-1"]
[WhiteElo "2313"]
[BlackElo "2457"]
[TimeControl "180+1"]
[EndTime "10:05:38 PST"]
[Termination "Chessbard1972 won by resignation"]

1. e4 {[%clk 0:02:57.5]} 1... e5 {[%clk 0:02:59.1]} 2. Nf3 {[%clk 0:02:57.4]}
2... Nc6 {[%clk 0:02:58.5]} 3. d4 {[%clk 0:02:57.8]} 3... exd4 {[%clk
0:02:58.3]} 4. Nxd4 {[%clk 0:02:58.3]} 4... Bc5 {[%clk 0:02:58.5]} 5. Nb3 {[%clk
0:02:58]} 5... Bb6 {[%clk 0:02:58]} 6. Nc3 {[%clk 0:02:58.3]} 6... Nge7 {[%clk
0:02:57.1]} 7. Bc4 {[%clk 0:02:55.8]} 7... O-O {[%clk 0:02:56.6]} 8. O-O {[%clk
0:02:55.2]} 8... Ne5 {[%clk 0:02:56.7]} 9. Be2 {[%clk 0:02:53.4]} 9... d6 {[%clk
0:02:56.6]} 10. Kh1 {[%clk 0:02:53.5]} 10... f5 {[%clk 0:02:47.7]} 11. f4 {[%clk
0:02:52.8]} 11... N5g6 {[%clk 0:02:47.6]} 12. exf5 {[%clk 0:02:34.7]} 12... Bxf5
{[%clk 0:02:46.7]} 13. Bd3 {[%clk 0:02:34.4]} 13... d5 {[%clk 0:02:41.8]} 14.
Bxf5 {[%clk 0:02:33.5]} 14... Rxf5 {[%clk 0:02:41.9]} 15. Qf3 {[%clk 0:02:31.7]}
15... c6 {[%clk 0:02:39.4]} 16. Ne2 {[%clk 0:02:31.2]} 16... Rf8 {[%clk
0:02:36]} 17. Qh3 {[%clk 0:02:29.2]} 17... Qc8 {[%clk 0:02:34.9]} 18. Qxc8
{[%clk 0:02:27]} 18... Raxc8 {[%clk 0:02:34.6]} 19. Ned4 {[%clk 0:02:26]} 19...
Rf6 {[%clk 0:02:34.4]} 20. f5 {[%clk 0:02:23]} 20... h6 {[%clk 0:02:24.4]} 21.
Bxh6 {[%clk 0:02:18.4]} 21... gxh6 {[%clk 0:02:21.5]} 22. fxg6 {[%clk
0:02:18.8]} 22... Rxg6 {[%clk 0:02:21.8]} 23. Rae1 {[%clk 0:02:17.3]} 23... Bd8
{[%clk 0:02:02.7]} 24. Re6 {[%clk 0:02:13.9]} 24... Rxe6 {[%clk 0:01:57.7]} 25.
Nxe6 {[%clk 0:02:14.1]} 25... Ng6 {[%clk 0:01:56.5]} 26. Nbc5 {[%clk 0:02:11.3]}
26... b6 {[%clk 0:01:48.2]} 27. Nd7 {[%clk 0:02:08.7]} 27... Be7 {[%clk
0:01:46.5]} 28. Nf6+ {[%clk 0:02:05.1]} 28... Kf7 {[%clk 0:01:37.4]} 29. Nf4
{[%clk 0:01:51.4]} 29... Nxf4 {[%clk 0:01:32.4]} 30. Rxf4 {[%clk 0:01:50.3]}
30... Bxf6 {[%clk 0:01:32]} 31. c3 {[%clk 0:01:50.8]} 31... Re8 {[%clk
0:01:30.6]} 0-1

[Event "Early-Titled-Tuesday-Blitz-February-20-2024"]
[Site "Chess.com"]
[Date "2024.02.20"]
[Round "11"]
[White "Rurep26"]
[Black "Predator0608"]
[Result "1-0"]
[WhiteElo "2732"]
[BlackElo "2583"]
[TimeControl "180+1"]
[EndTime "10:06:26 PST"]
[Termination "Rurep26 won by resignation"]

1. d4 {[%clk 0:03:00.9]} 1... Nf6 {[%clk 0:02:58.8]} 2. Bf4 {[%clk 0:03:00.1]}
2... g6 {[%clk 0:02:58.5]} 3. Nc3 {[%clk 0:02:58.2]} 3... Bg7 {[%clk 0:02:58.8]}
4. e4 {[%clk 0:02:58.7]} 4... d6 {[%clk 0:02:59.3]} 5. Qd2 {[%clk 0:02:59.3]}
5... O-O {[%clk 0:02:54]} 6. Bh6 {[%clk 0:02:58.1]} 6... c5 {[%clk 0:02:53.5]}
7. d5 {[%clk 0:02:56.3]} 7... a6 {[%clk 0:02:38.8]} 8. h4 {[%clk 0:02:55.3]}
8... b5 {[%clk 0:02:36.4]} 9. f3 {[%clk 0:02:54.4]} 9... b4 {[%clk 0:02:32.5]}
10. Nd1 {[%clk 0:02:52.6]} 10... Nh5 {[%clk 0:02:29.6]} 11. Bxg7 {[%clk
0:02:48.9]} 11... Kxg7 {[%clk 0:02:30.5]} 12. Ne2 {[%clk 0:02:47.7]} 12... Nd7
{[%clk 0:02:10.1]} 13. g4 {[%clk 0:02:46.4]} 13... Nhf6 {[%clk 0:02:10.2]} 14.
h5 {[%clk 0:02:46.6]} 14... gxh5 {[%clk 0:02:03]} 15. g5 {[%clk 0:02:40.9]}
15... Ng8 {[%clk 0:02:01.6]} 16. Nf4 {[%clk 0:02:40.5]} 16... Kh8 {[%clk
0:01:15]} 17. Rxh5 {[%clk 0:02:31.8]} 17... Ne5 {[%clk 0:01:15.2]} 18. Qg2
{[%clk 0:02:20]} 18... Ng6 {[%clk 0:00:40.6]} 19. Qh2 {[%clk 0:02:13.1]} 19...
h6 {[%clk 0:00:31.7]} 20. Rxh6+ {[%clk 0:02:02.7]} 20... Nxh6 {[%clk 0:00:29.7]}
21. Qxh6+ {[%clk 0:02:03.6]} 21... Kg8 {[%clk 0:00:30.3]} 22. Nh5 {[%clk
0:02:03.2]} 1-0

[Event "Early-Titled-Tuesday-Blitz-February-20-2024"]
[Site "Chess.com"]
[Date "2024.02.20"]
[Round "11"]
[White "Elnaz_Kaliakhmet"]
[Black "BilicVladimir"]
[Result "1-0"]
[WhiteElo "2481"]
[BlackElo "2630"]
[TimeControl "180+1"]
[EndTime "10:06:29 PST"]
[Termination "Elnaz_Kaliakhmet won by resignation"]

1. d4 {[%clk 0:02:58.6]} 1... d5 {[%clk 0:02:59.3]} 2. c4 {[%clk 0:02:59.3]}
2... c6 {[%clk 0:02:59.2]} 3. Nf3 {[%clk 0:02:59.6]} 3... Nf6 {[%clk 0:02:59.3]}
4. Nc3 {[%clk 0:03:00.3]} 4... a6 {[%clk 0:02:59.5]} 5. cxd5 {[%clk 0:02:56.9]}
5... cxd5 {[%clk 0:02:59.2]} 6. e3 {[%clk 0:02:47.2]} 6... Nc6 {[%clk
0:02:59.7]} 7. Bd3 {[%clk 0:02:45.7]} 7... Bg4 {[%clk 0:02:59.3]} 8. O-O {[%clk
0:02:45.3]} 8... e6 {[%clk 0:02:59]} 9. h3 {[%clk 0:02:44.3]} 9... Bxf3 {[%clk
0:02:57.3]} 10. Qxf3 {[%clk 0:02:43.5]} 10... Be7 {[%clk 0:02:58.2]} 11. a4
{[%clk 0:02:35.2]} 11... Kf8 {[%clk 0:02:56.6]} 12. b3 {[%clk 0:02:35.7]} 12...
g6 {[%clk 0:02:53.1]} 13. Ba3 {[%clk 0:02:33.1]} 13... Kg7 {[%clk 0:02:52.7]}
14. Bxe7 {[%clk 0:02:32.1]} 14... Qxe7 {[%clk 0:02:51.4]} 15. Rfc1 {[%clk
0:02:30]} 15... Rhc8 {[%clk 0:02:49.5]} 16. a5 {[%clk 0:02:21.6]} 16... Qb4
{[%clk 0:02:46.5]} 17. Na4 {[%clk 0:02:13.5]} 17... Nxa5 {[%clk 0:02:42.4]} 18.
Nc5 {[%clk 0:02:06.5]} 18... b6 {[%clk 0:02:09.6]} 19. Nxa6 {[%clk 0:01:23.5]}
19... Rxc1+ {[%clk 0:02:04.9]} 20. Rxc1 {[%clk 0:01:22.6]} 20... Qxb3 {[%clk
0:02:05.1]} 21. Bf1 {[%clk 0:01:16.1]} 21... Ne4 {[%clk 0:02:02]} 22. Nc7 {[%clk
0:01:11.6]} 22... Rd8 {[%clk 0:01:52.6]} 23. Qf4 {[%clk 0:01:08.8]} 23... Qb2
{[%clk 0:01:48.9]} 24. Nxe6+ {[%clk 0:01:02.4]} 24... Kg8 {[%clk 0:01:30.8]} 25.
Nxd8 {[%clk 0:00:58.3]} 1-0

[Event "Early-Titled-Tuesday-Blitz-February-20-2024"]
[Site "Chess.com"]
[Date "2024.02.20"]
[Round "11"]
[White "AlexanderKing"]
[Black "m_ezat"]
[Result "1-0"]
[WhiteElo "2627"]
[BlackElo "2506"]
[TimeControl "180+1"]
[EndTime "10:06:30 PST"]
[Termination "AlexanderKing won on time"]

1. c4 {[%clk 0:03:00.9]} 1... Nf6 {[%clk 0:02:50.9]} 2. Nc3 {[%clk 0:03:00.5]}
2... e5 {[%clk 0:02:27.6]} 3. Nf3 {[%clk 0:02:59.4]} 3... Nc6 {[%clk 0:01:45.9]}
4. g3 {[%clk 0:02:59.2]} 4... e4 {[%clk 0:01:43.2]} 5. Ng5 {[%clk 0:02:56.3]}
5... Ne5 {[%clk 0:01:39.1]} 6. b3 {[%clk 0:02:22.7]} 6... b6 {[%clk 0:00:44.6]}
7. Bg2 {[%clk 0:02:01.6]} 7... Bb7 {[%clk 0:00:31]} 8. Ngxe4 {[%clk 0:01:57]}
8... Nxe4 {[%clk 0:00:18]} 9. Nxe4 {[%clk 0:01:57.9]} 9... Be7 {[%clk
0:00:17.4]} 10. Nd6+ {[%clk 0:01:43.2]} 10... Bxd6 {[%clk 0:00:13.8]} 11. Bxb7
{[%clk 0:01:44.1]} 11... Rb8 {[%clk 0:00:14.3]} 12. Bg2 {[%clk 0:01:44.8]} 12...
O-O {[%clk 0:00:13.5]} 13. O-O {[%clk 0:01:45.2]} 1-0

[Event "Early-Titled-Tuesday-Blitz-February-20-2024"]
[Site "Chess.com"]
[Date "2024.02.20"]
[Round "11"]
[White "Kumi29"]
[Black "Szparu"]
[Result "1/2-1/2"]
[WhiteElo "2629"]
[BlackElo "2770"]
[TimeControl "180+1"]
[EndTime "10:06:34 PST"]
[Termination "Game drawn - insufficient material"]

1. d4 {[%clk 0:03:00.9]} 1... e6 {[%clk 0:03:00.7]} 2. e4 {[%clk 0:03:00.6]}
2... d5 {[%clk 0:03:01.3]} 3. exd5 {[%clk 0:03:01.5]} 3... exd5 {[%clk
0:03:01.8]} 4. Bd3 {[%clk 0:03:02]} 4... Nf6 {[%clk 0:03:02.2]} 5. h3 {[%clk
0:03:01.2]} 5... c5 {[%clk 0:03:02.5]} 6. Nf3 {[%clk 0:02:49.9]} 6... c4 {[%clk
0:03:02.5]} 7. Be2 {[%clk 0:02:50.3]} 7... Bd6 {[%clk 0:03:03.2]} 8. b3 {[%clk
0:02:50.3]} 8... cxb3 {[%clk 0:03:03.4]} 9. axb3 {[%clk 0:02:50.4]} 9... O-O
{[%clk 0:03:03.9]} 10. O-O {[%clk 0:02:50.5]} 10... Nc6 {[%clk 0:03:04.6]} 11.
Re1 {[%clk 0:02:44.6]} 11... h6 {[%clk 0:03:05.1]} 12. Ba3 {[%clk 0:02:37.4]}
12... Re8 {[%clk 0:03:04.1]} 13. Bxd6 {[%clk 0:02:35.8]} 13... Qxd6 {[%clk
0:03:05]} 14. c4 {[%clk 0:02:29.7]} 14... Bf5 {[%clk 0:03:03.9]} 15. c5 {[%clk
0:02:25.1]} 15... Qf4 {[%clk 0:03:02]} 16. Nc3 {[%clk 0:02:20.6]} 16... Re7
{[%clk 0:03:02.2]} 17. Bb5 {[%clk 0:02:16.1]} 17... Rae8 {[%clk 0:03:02.2]} 18.
Rxe7 {[%clk 0:02:12.4]} 18... Rxe7 {[%clk 0:03:03.1]} 19. Bxc6 {[%clk
0:02:08.8]} 19... bxc6 {[%clk 0:03:04]} 20. Ne5 {[%clk 0:02:08.3]} 20... Rc7
{[%clk 0:03:04.6]} 21. g3 {[%clk 0:01:58.3]} 21... Qg5 {[%clk 0:03:04.9]} 22. h4
{[%clk 0:01:58.8]} 22... Qh5 {[%clk 0:03:05]} 23. Qxh5 {[%clk 0:01:56.2]} 23...
Nxh5 {[%clk 0:03:05.4]} 24. Ra6 {[%clk 0:01:40.5]} 24... f6 {[%clk 0:03:06.1]}
25. Rxc6 {[%clk 0:01:31.2]} 25... Rb7 {[%clk 0:03:06.3]} 26. g4 {[%clk
0:01:08.9]} 26... fxe5 {[%clk 0:03:06.3]} 27. gxf5 {[%clk 0:01:05]} 27... Nf4
{[%clk 0:03:06.4]} 28. dxe5 {[%clk 0:01:01.3]} 28... Rxb3 {[%clk 0:03:07]} 29.
e6 {[%clk 0:00:56.7]} 29... Kf8 {[%clk 0:03:03.3]} 30. Rc8+ {[%clk 0:00:54.1]}
30... Ke7 {[%clk 0:03:03.7]} 31. Rc7+ {[%clk 0:00:54.8]} 31... Ke8 {[%clk
0:03:02.6]} 32. Na4 {[%clk 0:00:48.5]} 32... d4 {[%clk 0:03:00.6]} 33. Rxg7
{[%clk 0:00:38]} 33... d3 {[%clk 0:02:54.9]} 34. Rd7 {[%clk 0:00:26.6]} 34...
Ra3 {[%clk 0:02:51.9]} 35. f6 {[%clk 0:00:19.4]} 35... Nxe6 {[%clk 0:02:50.3]}
36. Re7+ {[%clk 0:00:16.3]} 36... Kf8 {[%clk 0:02:50.9]} 37. Rxe6 {[%clk
0:00:17.1]} 37... Rxa4 {[%clk 0:02:51.6]} 38. Rd6 {[%clk 0:00:17.2]} 38... Rc4
{[%clk 0:02:51.1]} 39. Rxd3 {[%clk 0:00:16.8]} 39... Rxc5 {[%clk 0:02:51.5]} 40.
Rd7 {[%clk 0:00:17.1]} 40... Rc4 {[%clk 0:02:46.1]} 41. Rxa7 {[%clk 0:00:13.3]}
41... Rxh4 {[%clk 0:02:46.2]} 42. Kg2 {[%clk 0:00:12.1]} 42... Rf4 {[%clk
0:02:46.5]} 43. Ra6 {[%clk 0:00:12.5]} 43... Kf7 {[%clk 0:02:46.6]} 44. Kg3
{[%clk 0:00:13.1]} 44... Rxf6 {[%clk 0:02:47.2]} 45. Rxf6+ {[%clk 0:00:12.8]}
45... Kxf6 {[%clk 0:02:48.1]} 46. Kh4 {[%clk 0:00:13.3]} 46... Kf5 {[%clk
0:02:48.5]} 47. Kh5 {[%clk 0:00:14]} 47... Kf4 {[%clk 0:02:49.4]} 48. Kxh6
{[%clk 0:00:14.4]} 48... Kf3 {[%clk 0:02:50.3]} 49. Kh7 {[%clk 0:00:14.7]} 49...
Kxf2 {[%clk 0:02:51.2]} 1/2-1/2